bitfinex/quotes_ETHUSD_20250328
["timestamp","ask_amount","ask_price","bid_price","bid_amount"]
[1743146616165,7.7895489,1918.9,1918.8,6.03]
[1743146616334,7.78553138,1918.9,1918.8,6.03]
[1743146616731,0.7586,1918.7,1918.2,6.03]
[1743146616932,2.57279823,1918.4,1918.3,6.03]
[1743146617127,3.12279823,1918.5,1918.3,6.03]
[1743146617379,1.3404,1918.3,1918.2,6.03]
[1743146617542,1.3404,1918.3,1918.1,0.05]
[1743146617733,32.97802172,1918.2,1918.1,0.05]
[1743146618032,30.69369372,1918.2,1918.1,0.05]
[1743146618234,24.41720072,1918.2,1918.1,0.05]
[1743146618567,26.93796079,1918.2,1918.1,0.05]
[1743146618967,24.38626679,1918.2,1918.1,0.05]
[1743146619463,25.15646679,1918.2,1918.1,0.05]
[1743146619840,23.09557579,1918.2,1918.1,0.05]
[1743146620041,23.48493845,1918.2,1918.1,0.05]
[1743146620840,23.84673745,1918.2,1918.1,0.05]
[1743146621040,23.59928645,1918.2,1918.1,0.05]
[1743146621968,12.06022845,1918.2,1918.1,0.05]
[1743146622141,21.17634938,1918.2,1918.1,0.05]
[1743146622674,9.19647015,1918.2,1918.1,0.05]
[1743146623375,11.76926838,1918.2,1918.1,0.05]
[1743146623876,6.62826838,1918.2,1918.1,0.05]
[1743146624043,11.77026838,1918.2,1918.1,0.05]
[1743146624244,12.94729522,1918.2,1918.1,0.05]
[1743146624769,36.63263822,1918.2,1918.1,0.05]
[1743146624970,42.23377522,1918.2,1918.1,0.05]
[1743146627479,25.62179922,1918.2,1918.1,0.05]
[1743146627651,23.09594922,1918.2,1918.1,0.05]
[1743146628571,18.48594522,1918.2,1918.1,0.05]
[1743146629072,6.62826838,1918.2,1918.1,0.05]
[1743146629256,10.83090572,1918.2,1918.1,0.05]
[1743146629457,0.11610749,1918.2,1918.1,0.05]
[1743146629658,0.11610749,1918.2,1918.1,11.29349]
[1743146629865,0.11610749,1918.2,1918.1,12.08159]
[1743146630064,5.142,1918.3,1918.1,13.811099]
[1743146630493,0.11178226,1918.2,1918.1,13.811099]
[1743146630854,5.142,1918.3,1918.1,8.597609]
[1743146631256,0.11178226,1918.2,1918.1,8.597609]
[1743146631559,5.142,1918.3,1918.1,8.597609]
[1743146631781,0.11178226,1918.2,1918.1,8.597609]
[1743146631955,5.142,1918.3,1918.1,8.597609]
[1743146632159,0.11178226,1918.2,1918.1,8.597609]
[1743146632464,5.142,1918.3,1918.1,8.597609]
[1743146632789,0.11178226,1918.2,1918.1,8.597609]
[1743146632994,0.11178226,1918.2,1918.1,13.811099]
[1743146633293,5.142,1918.3,1918.1,8.597609]
[1743146633661,0.11178226,1918.2,1918.1,8.597609]
[1743146633994,5.142,1918.3,1918.1,8.597609]
[1743146634394,0.11178226,1918.2,1918.1,2.567609]
[1743146634604,0.11178226,1918.2,1918.1,0.8381]
[1743146634908,5.142,1918.3,1918.1,0.8381]
[1743146635215,0.11178226,1918.2,1918.1,0.8381]
[1743146635669,5.142,1918.3,1918.1,0.8381]
[1743146636070,0.11178226,1918.2,1918.1,0.8381]
[1743146637013,0.11178226,1918.2,1918.1,1.443286]
[1743146638411,0.11178226,1918.2,1918.1,0.8381]
[1743146639111,3.23458049,1918.2,1918.1,0.05]
[1743146639573,14.57045349,1918.2,1918.1,0.05]
[1743146639770,18.34985349,1918.2,1918.1,0.05]
[1743146640093,23.56307349,1918.2,1918.1,0.05]
[1743146640418,26.95489084,1918.2,1918.1,0.05]
[1743146642820,21.74167084,1918.2,1918.1,0.05]
[1743146643227,27.97422538,1918.2,1918.1,0.05]
[1743146646815,16.63835238,1918.2,1918.1,0.05]
[1743146647002,64.74366138,1918.2,1918.1,0.05]
[1743146647816,16.63835238,1918.2,1918.1,0.05]
[1743146648595,16.63835238,1918.2,1917.8,6.03]
[1743146648596,0.7568,1917.5,1917.1,0.8284]
[1743146648810,2.57279823,1917.2,1917.1,6.8584]
[1743146649314,2.57279823,1917.2,1916.8,6.03]
[1743146649315,0.55,1917.1,1916.8,6.03]
[1743146649536,5.141,1917.0,1916.8,6.03]
[1743146649889,0.10727476,1916.9,1916.8,6.03]
[1743146653042,0.10727476,1916.9,1916.8,6.71085]
[1743146654223,0.10727476,1916.9,1916.8,6.03]
[1743146654399,2.68007299,1916.9,1916.8,6.03]
[1743146654891,2.57279823,1916.9,1916.8,6.03]
[1743146655621,5.141,1917.0,1916.8,6.03]
[1743146655825,5.142,1916.9,1916.8,6.03]
[1743146655996,5.142,1916.9,1916.8,7.232576]
[1743146656830,5.142,1916.9,1916.8,6.03]
[1743146658539,5.692,1916.9,1916.8,6.03]
[1743146659165,8.26479823,1916.9,1916.8,6.03]
[1743146660330,11.26479823,1916.9,1916.8,6.03]
[1743146660536,16.48154823,1916.9,1916.8,6.03]
[1743146660736,18.12970305,1916.9,1916.8,6.03]
[1743146660939,12.91295305,1916.9,1916.8,6.03]
[1743146661233,18.96010305,1916.9,1916.8,6.03]
[1743146661650,13.74335305,1916.9,1916.8,6.03]
[1743146663059,12.91295305,1916.9,1916.8,6.03]
[1743146663351,11.26479823,1916.9,1916.8,6.03]
[1743146664055,3.55,1916.8,1916.2,6.03]
[1743146664264,2.57279823,1916.6,1916.2,6.03]
[1743146664556,5.142,1916.5,1916.3,6.03]
[1743146665338,5.142,1916.5,1916.4,0.8053]
[1743146668362,2.57279823,1916.8,1916.4,7.51883]
[1743146668563,5.142,1916.7,1916.4,12.73689]
[1743146668873,5.142,1916.6,1916.4,7.51883]
[1743146669061,5.142,1916.6,1916.4,6.8353]
[1743146670339,2.57279823,1916.8,1916.4,12.05327]
[1743146670668,5.142,1916.7,1916.4,6.8353]
[1743146672647,5.142,1916.7,1916.5,6.03]
[1743146673873,5.142,1917.2,1916.8,5.21681]
[1743146674056,5.142,1917.2,1917.0,0.8226]
[1743146674944,7.71479823,1917.2,1916.8,0.7788]
[1743146675178,2.57279823,1917.1,1916.8,0.7788]
[1743146677348,2.57279823,1917.0,1916.8,0.7788]
[1743146677544,3.34427805,1917.1,1916.8,0.7788]
[1743146677749,3.12279823,1916.9,1916.6,0.7522]
[1743146677970,3.12279823,1916.9,1916.7,6.03]
[1743146678246,5.141,1916.8,1916.7,6.03]
[1743146681452,9.34797805,1916.8,1916.7,6.03]
[1743146681852,9.89797805,1916.8,1916.7,6.03]
[1743146682954,9.89797805,1916.8,1916.2,6.03]
[1743146682955,0.55,1916.7,1916.2,6.03]
[1743146683279,3.12279823,1916.3,1916.2,6.03]
[1743146683455,5.691,1916.3,1916.2,6.03]
[1743146684781,5.141,1916.3,1916.2,6.03]
[1743146685682,4.03297036,1916.7,1916.2,11.24866]
[1743146685889,3.0,1916.5,1916.3,6.8388]
[1743146686258,5.141,1916.6,1916.3,6.8388]
[1743146686660,7.71379823,1916.6,1916.3,6.8388]
[1743146687186,5.141,1916.8,1916.7,5.2173]
[1743146687394,0.77147982,1917.1,1916.7,5.2173]
[1743146687395,3.34427805,1917.1,1916.7,6.03]
[1743146687703,2.57279823,1916.9,1916.7,11.24719]
[1743146688500,2.57279823,1917.0,1916.9,5.21675]
[1743146688658,2.57279823,1917.1,1916.9,5.2167]
[1743146688853,2.57279823,1917.0,1916.8,0.8237]
[1743146689169,2.57279823,1916.9,1916.7,11.24723]
[1743146689380,2.57279823,1916.8,1916.7,11.24723]
[1743146689886,2.57279823,1916.8,1916.6,6.041]
[1743146689887,7.71379823,1916.8,1916.4,11.20889]
[1743146690095,2.57279823,1916.6,1916.4,5.99099]
[1743146690281,2.57279823,1916.7,1916.4,5.99099]
[1743146690586,2.57279823,1916.6,1916.4,5.99099]
[1743146690803,2.57279823,1916.6,1916.5,5.21784]
[1743146691886,2.57279823,1916.6,1916.4,5.99099]
[1743146692199,2.57279823,1916.5,1916.4,0.7731]
[1743146692406,2.57279823,1916.5,1916.3,6.03]
[1743146692873,5.69,1916.4,1916.3,6.03]
[1743146693072,6.51627982,1916.4,1916.3,6.03]
[1743146693271,7.71279823,1916.4,1916.3,6.03]
[1743146693600,8.26279823,1916.4,1916.3,6.03]
[1743146693805,9.08339823,1916.4,1916.3,6.03]
[1743146694100,12.08339823,1916.4,1916.3,6.03]
[1743146695177,0.55,1916.4,1916.3,6.03]
[1743146695379,5.14,1916.5,1916.4,6.04501]
[1743146695580,5.14,1916.5,1916.3,6.03]
[1743146695581,7.71279823,1916.5,1916.3,6.03]
[1743146696190,0.55,1916.4,1916.3,6.03]
[1743146696502,3.92539823,1916.4,1916.3,6.03]
[1743146696696,5.14,1916.5,1916.3,6.03]
[1743146696897,5.14,1916.5,1916.3,16.46665]
[1743146697193,5.14,1916.5,1916.4,5.21811]
[1743146697378,7.71279823,1916.6,1916.4,5.21798]
[1743146697576,5.14,1916.6,1916.3,11.24831]
[1743146697778,2.57279823,1916.4,1916.3,11.24831]
[1743146698181,2.57279823,1916.5,1916.4,5.2181]
[1743146698698,2.57279823,1916.5,1916.3,11.24832]
[1743146698898,2.57279823,1916.5,1916.4,11.24811]
[1743146699498,2.57279823,1916.5,1916.4,6.03]
[1743146699683,3.94979823,1916.5,1916.4,6.03]
[1743146700085,5.14,1916.6,1916.4,12.05151]
[1743146700086,7.71279823,1916.6,1916.4,12.05151]
[1743146700273,7.71279823,1916.6,1916.4,6.03]
[1743146700470,1.32127982,1916.5,1916.4,6.03]
[1743146700792,2.13857982,1916.5,1916.4,6.03]
[1743146701101,0.55,1916.5,1916.4,6.03]
[1743146701293,5.69,1916.5,1916.4,6.03]
[1743146702182,12.802319,1916.5,1916.4,6.03]
[1743146702373,8.26279823,1916.5,1916.4,6.03]
[1743146703701,11.26279823,1916.5,1916.4,6.03]
[1743146703906,12.38907805,1916.5,1916.4,6.03]
[1743146704116,13.17057805,1916.5,1916.4,6.03]
[1743146704504,19.38041105,1916.5,1916.4,6.03]
[1743146705021,0.55,1916.4,1916.2,6.03]
[1743146705229,2.57279823,1916.3,1916.2,6.03]
[1743146705378,5.88507805,1916.3,1916.2,6.03]
[1743146705803,6.43507805,1916.3,1916.2,6.03]
[1743146706505,6.43507805,1916.3,1916.1,0.05]
[1743146706506,3.55,1916.2,1916.1,0.05]
[1743146706810,30.98128123,1916.2,1916.1,0.05]
[1743146707003,26.92805634,1916.2,1916.1,0.05]
[1743146707197,17.298432,1916.2,1916.1,0.05]
[1743146707506,8.26279823,1916.2,1916.1,0.05]
[1743146708284,20.04396223,1916.2,1916.1,0.05]
[1743146708483,10.56742623,1916.2,1916.1,0.05]
[1743146708815,5.14,1916.2,1916.1,0.05]
[1743146709032,5.69,1916.2,1916.1,0.05]
[1743146709824,8.26279823,1916.2,1916.1,0.05]
[1743146710954,8.26279823,1916.2,1916.1,5.26893]
[1743146711436,1.89187982,1916.5,1916.2,5.21865]
[1743146711724,5.69,1916.3,1916.2,5.21865]
[1743146711887,8.26279823,1916.3,1916.1,6.07143]
[1743146712711,2.57279823,1916.2,1916.1,0.05]
[1743146712888,3.12279823,1916.2,1916.1,0.05]
[1743146713289,9.15473923,1916.2,1916.1,0.05]
[1743146713496,8.78122115,1916.2,1916.1,0.05]
[1743146714681,4.55227215,1916.2,1916.1,0.05]
[1743146714886,14.11279615,1916.2,1916.1,0.05]
[1743146716211,17.87349615,1916.2,1916.1,0.05]
[1743146716519,8.31297215,1916.2,1916.1,0.05]
[1743146716815,23.46631315,1916.2,1916.1,0.05]
[1743146716987,23.18968115,1916.2,1916.1,0.05]
[1743146717397,8.31297215,1916.2,1916.1,0.05]
[1743146720628,9.3464052,1916.2,1916.1,0.05]
[1743146722600,51.4423442,1916.2,1916.1,0.05]
[1743146722932,49.1291322,1916.2,1916.1,0.05]
[1743146724330,54.6281322,1916.2,1916.1,0.05]
[1743146724504,48.2932032,1916.2,1916.1,0.05]
[1743146725439,9.3464052,1916.2,1916.1,0.05]
[1743146725798,46.3363382,1916.2,1916.1,0.05]
[1743146726030,44.6264032,1916.2,1916.1,0.05]
[1743146726431,44.6264032,1916.2,1915.6,0.1155153]
[1743146726432,0.8172,1916.0,1915.6,0.1155153]
[1743146726739,3.12279823,1915.7,1915.6,0.1155153]
[1743146726907,2.57279823,1916.0,1915.7,5.21998]
[1743146727332,5.14,1915.9,1915.7,5.21986]
[1743146727509,2.57279823,1915.9,1915.7,5.21986]
[1743146727714,5.14,1915.8,1915.7,5.21986]
[1743146729934,1.03343305,1916.2,1915.9,0.7695]
[1743146730135,2.57279823,1916.5,1916.3,5.21829]
[1743146730349,2.57279823,1916.5,1916.4,0.7695]
[1743146730639,5.141,1916.5,1916.4,0.7695]
[1743146730815,3.64072028,1916.6,1916.4,5.98759]
[1743146731011,2.57279823,1916.7,1916.5,5.21784]
[1743146731204,5.141,1916.6,1916.5,5.21784]
[1743146731633,2.57279823,1916.7,1916.5,10.43558]
[1743146731802,5.36077156,1916.6,1916.5,5.21774]
[1743146732003,5.141,1916.6,1916.5,5.21774]
[1743146732253,5.36233855,1916.6,1916.5,11.24774]
[1743146732554,5.36133855,1916.6,1916.5,12.971266]
[1743146732719,5.36133855,1916.6,1916.5,11.24774]
[1743146736124,5.36133855,1916.6,1916.5,6.03]
[1743146736635,5.36133855,1916.6,1916.5,11.24784]
[1743146736837,5.36133855,1916.6,1916.5,12.05474]
[1743146738923,5.36133855,1916.6,1916.5,6.03]
[1743146740029,5.36133855,1916.6,1916.5,11.24784]
[1743146740352,5.36133855,1916.6,1916.5,12.00774]
[1743146741147,0.22133855,1916.6,1916.5,12.00774]
[1743146741354,5.138,1916.6,1916.5,12.00774]
[1743146741652,5.35933855,1916.6,1916.5,12.00774]
[1743146743621,5.90933855,1916.6,1916.5,6.03]
[1743146743826,6.44527241,1916.6,1916.5,6.03]
[1743146747659,12.01807064,1916.6,1916.5,6.03]
[1743146747825,3.55,1916.5,1916.0,6.8403]
[1743146748027,0.355,1916.4,1916.0,12.05941]
[1743146748343,0.57657927,1916.4,1916.1,5.21889]
[1743146748839,5.138,1916.3,1916.2,10.43701]
[1743146749040,5.138,1916.3,1916.2,11.26511]
[1743146749257,5.138,1916.5,1916.2,9.43089823]
[1743146749445,5.138,1916.7,1916.5,0.7757]
[1743146749639,5.138,1916.7,1916.6,5.21733]
[1743146749969,3.38089823,1917.1,1916.7,5.21727]
[1743146749970,5.138,1916.8,1916.7,5.21727]
[1743146750259,5.138,1916.8,1916.7,12.03177]
[1743146750485,0.8185,1917.3,1917.0,5.21648]
[1743146750766,5.138,1917.2,1917.0,16.46278]
[1743146751057,3.0,1917.4,1917.1,5.21621]
[1743146751226,5.438,1917.3,1917.1,5.21621]
[1743146751632,0.7851,1917.8,1917.3,5.9736]
[1743146751859,0.55,1917.6,1917.3,12.0036]
[1743146752073,0.7851,1917.8,1917.5,5.2149]
[1743146752479,5.137,1917.7,1917.6,5.21482]
[1743146752629,0.05,1917.9,1917.8,5.9962]
[1743146752838,0.05,1917.9,1917.8,12.0262]
[1743146753282,0.05,1917.9,1917.8,14.59899823]
[1743146753980,0.05,1917.9,1917.8,14.63359823]
[1743146754480,0.05,1917.9,1917.8,6.03]
[1743146755143,0.28848086,1917.9,1917.8,6.03]
[1743146755344,0.05,1917.9,1917.8,6.03]
[1743146755542,0.28848086,1917.9,1917.8,6.03]
[1743146755863,0.05,1917.9,1917.8,6.03]
[1743146756165,5.186,1917.9,1917.8,11.2443]
[1743146756461,5.42448086,1917.9,1917.8,11.2443]
[1743146756654,5.186,1917.9,1917.8,11.2443]
[1743146756854,5.42285807,1917.9,1917.8,11.2443]
[1743146757035,5.42285807,1917.9,1917.8,6.03]
[1743146757968,5.42285807,1917.9,1917.8,11.2443]
[1743146758484,5.42285807,1917.9,1917.8,16.25547623]
[1743146758674,5.42285807,1917.9,1917.8,12.0368]
[1743146758848,5.186,1917.9,1917.8,12.0368]
[1743146759178,5.42339905,1917.9,1917.8,12.0368]
[1743146759775,9.41562505,1917.9,1917.8,12.0368]
[1743146759975,8.70697505,1917.9,1917.8,12.0368]
[1743146760179,5.42339905,1917.9,1917.8,12.0368]
[1743146760350,5.42339905,1917.9,1917.8,6.03]
[1743146760740,14.88522505,1917.9,1917.8,11.2443]
[1743146760935,5.42339905,1917.9,1917.8,13.81709823]
[1743146761135,5.42339905,1917.9,1917.8,11.2443]
[1743146761775,5.42339905,1917.9,1917.8,6.03]
[1743146761983,5.96573896,1917.9,1917.8,6.03]
[1743146762482,0.55,1917.7,1917.5,6.03]
[1743146762662,6.12279823,1917.6,1917.5,6.03]
[1743146762863,9.58,1917.5,1917.1,6.03]
[1743146763096,32.92433823,1917.4,1917.1,6.03]
[1743146763395,0.55,1917.2,1917.1,6.03]
[1743146763558,10.581051,1917.2,1917.1,6.03]
[1743146763765,11.364851,1917.2,1917.1,6.03]
[1743146764094,4.56939559,1917.2,1917.1,6.03]
[1743146764454,7.56344559,1917.2,1917.1,6.03]
[1743146765180,1.54194015,1917.2,1917.1,6.03]
[1743146765491,1.54194015,1917.2,1916.2,5.85865159]
[1743146765492,1.58849559,1917.2,1916.8,6.03]
[1743146765693,7.17905159,1916.9,1916.8,6.03]
[1743146765897,9.4554,1916.9,1916.8,6.03]
[1743146766096,10.62685238,1916.9,1916.8,6.03]
[1743146766498,10.62685238,1916.9,1916.1,15.33866]
[1743146766499,0.55,1916.8,1916.4,6.03]
[1743146767053,0.22591238,1916.7,1916.4,6.03]
[1743146767257,0.55,1916.6,1916.4,6.03]
[1743146767564,5.35928756,1916.5,1916.4,6.03]
[1743146767770,5.90928756,1916.5,1916.4,6.03]
[1743146768154,5.35928756,1916.5,1916.4,11.24811]
[1743146768477,5.35928756,1916.5,1916.4,6.03]
[1743146768859,5.35928756,1916.5,1916.4,11.24811]
[1743146769195,5.35928756,1916.5,1916.4,12.00391]
[1743146769354,5.35928756,1916.5,1916.4,12.53230359]
[1743146770513,5.135,1916.5,1916.4,12.53230359]
[1743146770685,5.35898662,1916.5,1916.4,12.53230359]
[1743146772065,0.22398662,1916.5,1916.4,12.53230359]
[1743146772500,5.136,1916.7,1916.5,5.21762]
[1743146773984,5.136,1916.7,1916.4,11.24811]
[1743146774285,5.136,1916.7,1916.5,5.2177]
[1743146774490,5.136,1916.7,1916.5,5.9678]
[1743146774690,5.136,1916.7,1916.6,5.21757]
[1743146775013,0.55,1917.0,1916.6,5.21757]
[1743146775210,5.136,1916.7,1916.6,5.21757]
[1743146775586,5.36058849,1916.7,1916.6,5.21757]
[1743146776915,0.22458849,1916.7,1916.6,5.21757]
[1743146777069,5.36058849,1916.7,1916.6,5.21757]
[1743146777699,5.21757,1916.6,1916.5,5.9678]
[1743146777900,5.136,1916.7,1916.6,5.21757]
[1743146778100,0.8127,1917.3,1917.0,5.21633]
[1743146778311,0.59233991,1917.9,1916.6,11.24755]
[1743146778312,0.8127,1917.5,1917.2,5.21592]
[1743146778521,5.136,1917.4,1917.3,11.24564]
[1743146778708,5.136,1917.4,1917.3,6.03]
[1743146780517,12.53328217,1917.4,1917.3,6.03]
[1743146780815,13.35948217,1917.4,1917.3,6.03]
[1743146781038,0.8262,1917.2,1916.7,6.03]
[1743146781316,3.55,1917.1,1916.7,6.03]
[1743146781615,0.55,1916.9,1916.7,6.03]
[1743146781803,5.271966,1916.8,1916.7,6.03]
[1743146782117,5.271966,1916.8,1916.7,11.2473]
[1743146782118,2.1945,1916.8,1916.7,11.2473]
[1743146782328,5.686,1916.8,1916.7,6.03]
[1743146782791,8.962873,1916.8,1916.7,6.03]
[1743146783186,8.181493,1916.8,1916.7,11.2473]
[1743146783416,7.173155,1916.8,1916.7,11.2473]
[1743146783626,1.327,1917.0,1916.8,5.21698]
[1743146783627,0.55,1917.0,1916.8,5.21698]
[1743146783926,5.136,1916.9,1916.8,10.43384]
[1743146784228,5.136,1916.9,1916.8,5.21686]
[1743146784432,5.136,1916.9,1916.7,11.24728]
[1743146784433,20.524757,1916.9,1916.7,11.24728]
[1743146784619,5.136,1916.9,1916.7,11.24728]
[1743146784939,5.136,1916.9,1916.7,6.03]
[1743146784940,5.7046,1916.9,1916.7,6.03]
[1743146785604,6.5116,1916.9,1916.7,6.03]
[1743146786065,5.136,1916.9,1916.7,11.24712]
[1743146786238,1.84430017,1917.2,1916.8,5.21702]
[1743146786544,24.705068,1917.1,1916.7,11.2471]
[1743146786738,0.55,1916.9,1916.7,11.2471]
[1743146786948,7.381515,1916.8,1916.7,11.2471]
[1743146787143,7.381515,1916.8,1916.7,6.03]
[1743146787302,0.55,1916.9,1916.7,11.2473]
[1743146787811,0.55,1916.9,1916.7,11.24711]
[1743146788192,0.55,1916.9,1916.8,5.21702]
[1743146788395,0.55,1917.0,1916.8,10.43389]
[1743146788633,0.55,1917.0,1916.8,10.43378]
[1743146788840,5.136,1916.9,1916.8,5.21687]
[1743146790041,1.3296,1916.8,1916.7,6.03]
[1743146790342,3.91102269,1916.8,1916.7,6.03]
[1743146790509,1.55388764,1916.8,1916.7,6.03]
[1743146790894,0.77428764,1916.8,1916.7,6.03]
[1743146792197,0.22428764,1916.8,1916.7,11.2473]
[1743146792527,0.55,1917.1,1916.8,10.43393]
[1743146792712,0.55,1917.1,1916.8,11.24691]
[1743146792914,5.136,1917.0,1916.8,11.24691]
[1743146793138,5.686,1917.0,1916.9,5.21675]
[1743146793554,0.7799,1917.2,1917.0,5.21628]
[1743146793704,5.136,1917.2,1917.1,11.24621]
[1743146794729,5.136,1917.2,1917.1,6.03]
[1743146795031,5.136,1917.2,1917.1,9.24621]
[1743146795531,11.267151,1917.2,1917.1,9.24621]
[1743146795723,8.816262,1917.2,1917.1,4.03]
[1743146795898,5.136,1917.2,1917.1,4.03]
[1743146796110,9.53472269,1917.2,1916.6,4.03]
[1743146796306,9.53472269,1917.2,1916.8,5.21692]
[1743146796307,0.55,1917.0,1916.8,5.21692]
[1743146796934,2.098765,1916.9,1916.8,5.21692]
[1743146797137,3.123117,1916.9,1916.8,5.21692]
[1743146797337,3.123117,1916.9,1916.7,10.05874]
[1743146797533,5.686,1916.8,1916.7,4.03]
[1743146798352,12.63612269,1916.8,1916.7,4.03]
[1743146798546,10.28025134,1916.8,1916.7,4.03]
[1743146799046,4.03,1916.7,1916.6,5.21753]
[1743146799264,4.867247,1916.7,1916.6,5.21753]
[1743146799418,4.376379,1916.7,1916.6,5.21753]
[1743146799614,4.60193034,1916.7,1916.6,5.21753]
[1743146800445,0.22555134,1916.7,1916.6,5.21753]
[1743146801240,0.22555134,1916.7,1916.6,7.13378047]
[1743146801440,5.136,1916.8,1916.7,5.2173]
[1743146801664,0.55,1917.2,1916.9,5.21675]
[1743146801846,5.136,1917.1,1916.9,5.21675]
[1743146802050,0.8286,1917.3,1917.1,5.2162]
[1743146802233,5.136,1917.2,1917.0,5.21647]
[1743146802438,1.84992472,1917.5,1917.2,5.2158]
[1743146802747,5.136,1917.4,1917.2,5.2158]
[1743146803160,5.136,1917.4,1917.1,5.21595]
[1743146803361,6.12057646,1917.4,1917.1,5.21595]
[1743146803569,3.40983989,1917.3,1917.0,4.03]
[1743146804486,3.0,1917.2,1917.0,4.03]
[1743146805264,1.53895279,1917.1,1917.0,4.03]
[1743146805786,0.75685279,1917.1,1917.0,4.03]
[1743146806153,0.75685279,1917.1,1917.0,9.24648]
[1743146806454,0.20685279,1917.1,1917.0,9.81183274]
[1743146806657,5.135,1917.4,1917.3,5.21566]
[1743146806877,37.3462798,1917.9,1917.4,5.21527]
[1743146807042,0.55,1917.6,1917.4,5.21527]
[1743146807427,1.1185,1917.6,1917.4,5.21527]
[1743146807752,3.531075,1917.5,1917.4,5.21527]
[1743146807952,1.37443991,1917.9,1917.6,5.21475]
[1743146808151,13.884934,1917.8,1917.6,5.21475]
[1743146808353,13.884934,1917.8,1917.6,10.4295]
[1743146808354,5.135,1917.8,1917.6,10.4295]
[1743146808546,5.135,1917.8,1917.5,5.21504]
[1743146808754,5.135,1917.8,1917.6,5.21481]
[1743146808955,5.135,1917.8,1917.6,10.42956]
[1743146809376,5.135,1917.8,1917.5,5.21496]
[1743146809776,5.135,1917.8,1917.6,5.21475]
[1743146810250,5.685,1917.8,1917.7,5.21457]
[1743146810449,5.135,1917.8,1917.7,5.21457]
[1743146811493,0.05,1917.9,1917.8,5.2143]
[1743146811811,9.819729,1917.9,1917.8,5.2143]
[1743146812192,9.819729,1917.9,1917.8,9.2443]
[1743146812392,5.184,1917.9,1917.8,9.2443]
[1743146813303,0.05,1917.9,1917.8,9.2443]
[1743146813497,5.184,1917.9,1917.8,10.769937]
[1743146813874,0.24564865,1917.9,1917.8,10.769937]
[1743146816387,0.24564865,1917.9,1917.8,9.2443]
[1743146819478,4.61312165,1917.9,1917.8,9.2443]
[1743146819681,4.64978965,1917.9,1917.8,9.2443]
[1743146820298,0.24564865,1917.9,1917.8,9.2443]
[1743146820705,0.24564865,1917.9,1917.8,4.03]
[1743146822787,0.79564865,1917.9,1917.8,4.03]
[1743146823013,1.25812352,1917.9,1917.8,4.03]
[1743146825316,4.11796341,1917.9,1917.8,4.03]
[1743146826943,3.83736965,1917.9,1917.8,4.03]
[1743146827142,6.83736965,1917.9,1917.8,4.03]
[1743146827327,0.55,1917.8,1917.4,4.03]
[1743146827643,7.91549349,1917.7,1917.4,4.03]
[1743146828317,7.91549349,1917.7,1917.4,9.2453]
[1743146828641,0.55,1917.5,1917.4,9.2453]
[1743146828814,5.133,1917.7,1917.5,5.21512]
[1743146829016,0.05,1917.9,1917.7,5.21442]
[1743146829226,0.05,1917.9,1917.8,5.2143]
[1743146829424,0.05,1917.9,1917.8,6.0885413]
[1743146829627,0.2491473,1917.9,1917.8,6.0885413]
[1743146829848,0.2491473,1917.9,1917.8,7.47676204]
[1743146830009,0.2491473,1917.9,1917.8,10.05600817]
[1743146830212,0.2491473,1917.9,1917.8,10.00386687]
[1743146830812,0.05,1917.9,1917.8,10.00386687]
[1743146831449,0.2491473,1917.9,1917.8,10.00386687]
[1743146832150,0.1491473,1917.9,1917.8,10.00386687]
[1743146832456,5.133,1918.2,1918.1,6.03489]
[1743146832611,1.86349748,1918.8,1918.5,5.21218]
[1743146832815,13.406778,1918.7,1918.6,6.03]
[1743146833041,5.683,1918.7,1918.6,6.03]
[1743146834050,0.55,1918.7,1918.6,6.03]
[1743146834331,11.830191,1918.7,1918.6,6.03]
[1743146834630,13.48495946,1918.7,1918.6,6.03]
[1743146835244,7.33676846,1918.7,1918.6,6.03]
[1743146835756,5.682,1918.7,1918.6,6.03]
[1743146838028,4.71749355,1918.8,1918.6,6.03]
[1743146838029,0.7928,1919.0,1918.8,5.21138]
[1743146838356,0.7928,1919.2,1919.0,5.21083]
[1743146838535,5.132,1919.1,1919.0,6.03]
[1743146838731,6.27448,1919.1,1919.0,6.03]
[1743146838932,9.32942429,1919.1,1919.0,6.03]
[1743146839757,10.35871522,1919.1,1919.0,6.03]
[1743146840070,9.76623522,1919.1,1919.0,6.03]
[1743146840656,5.88294822,1919.1,1919.0,6.03]
[1743146841853,9.76623422,1919.1,1919.0,6.03]
[1743146842047,0.20094822,1919.1,1919.0,11.24104]
[1743146842249,5.33194822,1919.1,1919.0,11.24104]
[1743146842437,5.33194822,1919.1,1919.0,12.886254]
[1743146843247,5.88194822,1919.1,1919.0,6.03]
[1743146843455,8.73594429,1919.1,1919.0,6.03]
[1743146844663,8.73594429,1919.1,1919.0,11.24104]
[1743146844867,16.12213129,1919.1,1919.0,11.24104]
[1743146845227,12.68500129,1919.1,1919.0,11.24104]
[1743146846126,3.05494429,1919.1,1919.0,11.24104]
[1743146846354,5.33094822,1919.1,1919.0,12.886263]
[1743146847247,5.33094822,1919.1,1919.0,11.24104]
[1743146847633,8.18494429,1919.1,1919.0,6.03]
[1743146848156,11.28517829,1919.1,1919.0,6.03]
[1743146848533,11.83517829,1919.1,1919.0,6.03]